{"text_format":"3","workbook":"xlsx","n_sheets":2,"sheets":["PRADŽIA","BIUDŽETO ĮRANKIS"],"not_rendered":{"defined_names":2},"read":"whole","date_system":"1900"}

{"sheet":"PRADŽIA","index":0,"n_rows":7,"n_cols":2,"rows_kept":7}
[null,"APIE ŠĮ ŠABLONĄ"]
[null,"Sekite žiniatinklio svetainės biudžeto sudarymas įrankis, jos naudą ir išlaidos, nauda šios svetainės biudžeto sudarymo priemonę."]
[null,"Įveskite įmonės pavadinimas ir data."]
[null,"Jei norite, kad būtų automatiškai apskaičiuojamos sumos ir vertinimo rodikliai, įveskite lentelėse išsamią informaciją."]
[null,"Pastaba.  "]
[null,"Papildomos instrukcijos pateikiamos darbalapio BIUDŽETO ĮRANKIS A stulpelyje. Šis tekstas buvo specialiai paslėptas. Norėdami pašalinti tekstą, pasirinkite A stulpelį, tada pasirinkite Naikinti. Norėdami nebeslėpti teksto, pasirinkite A stulpelį, tada pakeiskite šrifto spalvą."]
[null,"Norėdami sužinoti daugiau apie darbalapio lenteles, lentelėje paspauskite SHIFT, tada – F10, pasirinkite parinktį LENTELĖ, tada pasirinkite ALTERNATYVUS TEKSTAS."]

{"sheet":"BIUDŽETO ĮRANKIS","index":1,"n_rows":43,"n_cols":6,"rows_kept":43,"merged":[[14,1,14,5],[22,1,22,5],[30,1,30,5],[38,1,38,5]]}
["Sukurkite žiniatinklio svetainės biudžetą šiame darbalapyje. Naudingos instrukcijos, kaip naudoti šį darbalapį, pateiktos šio stulpelio langeliuose. Paspauskite rodyklę žemyn, kad pradėtumėte."]
["Langelyje dešinėje įveskite įmonės pavadinimas.","Įmonės pavadinimas"]
["Šio darbalapio pavadinimas yra langelyje dešinėje.","Žiniatinklio svetainės biudžeto sudarymas įrankis"]
["Įveskite data langelyje dešinėje.","Data"]
["Patarimas pateikiamas langelyje dešinėje.","Pilkuose langeliuose yra skaičiavimai, kurių negalima keisti."]
["Įveskite informaciją lentelėje Vertinimas pradėdami nuo langelio dešinėje. Kitas nurodymas yra A10 langelyje.","Įmonės duomenys","Koeficientas"]
[null,"Būtinas grąžos koeficientas",{"v":0.1,"d":"10%"}]
[null,"Mokesčio tarifas",{"v":0.3,"d":"30%"}]
[]
["Įveskite informaciją lentelėje Pradinė investicija pradėdami nuo langelio dešinėje. Kitas nurodymas yra A16 langelyje.","Pradinė investicija į žiniatinklio svetainę","METAI","1","2","3"]
[null,"Aparatūra (pvz., serveriai)",{"v":25000,"d":"25,000.00 EUR"}]
[null,"Programinė įranga (pvz., el. prekybos katalogo programinė įranga)",{"v":15000,"d":"15,000.00 EUR"}]
[null,"Kūrimas (pvz., trečiųjų šalių svetainės dizainas ir kūrimas)",{"v":150000,"d":"150,000.00 EUR"}]
[null,"Bendra pradinių investicijų suma",{"$f":"SUBTOTAL(109,PradinėInvesticija[METAI])","v":{"v":190000,"d":"190,000.00 EUR"}}]
[]
["Įveskite informaciją lentelėje Nauda pradėdami nuo langelio dešinėje. Kitas nurodymas yra A24 langelyje.","Nauda iš žiniatinklio svetainės","METAI","1","2","3"]
[null,"Tiesioginis pardavimas",null,{"v":15000,"d":"15,000.00 EUR"},{"v":50000,"d":"50,000.00 EUR"},{"v":75000,"d":"75,000.00 EUR"}]
[null,"Dėl pagerinto reklamos / pardavėjų efektyvumo didėjantys pardavimai",null,{"v":25000,"d":"25,000.00 EUR"},{"v":25000,"d":"25,000.00 EUR"},{"v":25000,"d":"25,000.00 EUR"}]
[null,"Dėl padidėjusios partnerių dalyvavimo didėjantys pardavimai",null,{"v":25000,"d":"25,000.00 EUR"},{"v":25000,"d":"25,000.00 EUR"},{"v":25000,"d":"25,000.00 EUR"}]
[null,"Sumažintos kelionės išlaidos",null,{"v":25000,"d":"25,000.00 EUR"},{"v":25000,"d":"25,000.00 EUR"},{"v":25000,"d":"25,000.00 EUR"}]
[null,"Sumažintos klientų aptarnavimo išlaidas",null,{"v":50000,"d":"50,000.00 EUR"},{"v":50000,"d":"50,000.00 EUR"},{"v":50000,"d":"50,000.00 EUR"}]
[null,"Bendra nauda",null,{"$f":"SUBTOTAL(109,Nauda[1])","v":{"v":140000,"d":"140,000.00 EUR"}},{"$f":"SUBTOTAL(109,Nauda[2])","v":{"v":175000,"d":"175,000.00 EUR"}},{"$f":"SUBTOTAL(109,Nauda[3])","v":{"v":200000,"d":"200,000.00 EUR"}}]
[]
["Įveskite informaciją lentelėje Išlaidos pradėdami nuo langelio dešinėje. Reikšmės yra automatiškai apskaičiuojama langeliuose, kuriuose yra formulės. Kitas nurodymas yra A32 langelyje.","Išlaidos (išskyrus pradines kapitalo investicijas)","METAI","1","2","3"]
[null,"Pardavimo išlaidos",null,{"v":7500,"d":"7,500.00 EUR"},{"v":25000,"d":"25,000.00 EUR"},{"v":37500,"d":"37,500.00 EUR"}]
[null,"Priežiūra",null,{"v":15000,"d":"15,000.00 EUR"},{"v":15000,"d":"15,000.00 EUR"},{"v":15000,"d":"15,000.00 EUR"}]
[null,"Projektų valdymas, klientų palaikymas",null,{"v":35000,"d":"35,000.00 EUR"},{"v":35000,"d":"35,000.00 EUR"},{"v":35000,"d":"35,000.00 EUR"}]
[null,"Reklama internete, registracija paieškos sistemoje",null,{"v":10000,"d":"10,000.00 EUR"},{"v":10000,"d":"10,000.00 EUR"},{"v":10000,"d":"10,000.00 EUR"}]
[null,"Nusidėvėjimas kapitalinėse išlaidose (skaičiuojant naudojamas trejų metų laikotarpis)",null,{"$f":"PradinėInvesticija[[#Totals],[METAI]]/3","v":{"v":63333.333333333336,"d":"63,333.33 EUR"}},{"$f":"PradinėInvesticija[[#Totals],[METAI]]/3","v":{"v":63333.333333333336,"d":"63,333.33 EUR"}},{"$f":"PradinėInvesticija[[#Totals],[METAI]]/3","v":{"v":63333.333333333336,"d":"63,333.33 EUR"}}]
[null,"Bendros išlaidos",null,{"$f":"SUBTOTAL(109,Išlaidos[1])","v":{"v":130833.33333333334,"d":"130,833.33 EUR"}},{"$f":"SUBTOTAL(109,Išlaidos[2])","v":{"v":148333.33333333334,"d":"148,333.33 EUR"}},{"$f":"SUBTOTAL(109,Išlaidos[3])","v":{"v":160833.33333333334,"d":"160,833.33 EUR"}}]
[]
["Reikšmės automatiškai apskaičiuojamos lentelėje Sumos, pradedant langeliu dešinėje. Kitas nurodymas yra A40 langelyje.","Iš viso","METAI","1","2","3"]
[null,"Grynoji nauda (išlaidos)",null,{"$f":"Nauda[[#Totals],[1]]-Išlaidos[[#Totals],[1]]","v":{"v":9166.666666666657,"d":"9,166.67 EUR"}},{"$f":"Nauda[[#Totals],[2]]-Išlaidos[[#Totals],[2]]","v":{"v":26666.666666666657,"d":"26,666.67 EUR"}},{"$f":"Nauda[[#Totals],[3]]-Išlaidos[[#Totals],[3]]","v":{"v":39166.66666666666,"d":"39,166.67 EUR"}}]
[null,"Mokestis",null,{"$f":"D33*MokesčioTarifas","v":{"v":2749.999999999997,"d":"2,750.00 EUR"}},{"$f":"E33*MokesčioTarifas","v":{"v":7999.999999999996,"d":"8,000.00 EUR"}},{"$f":"F33*MokesčioTarifas","v":{"v":11749.999999999996,"d":"11,750.00 EUR"}}]
[null,"Vertė po mokesčių",null,{"$f":"D33-D34","v":{"v":6416.666666666661,"d":"6,416.67 EUR"}},{"v":18666.66666666666,"d":"18,666.67 EUR"},{"v":27416.66666666666,"d":"27,416.67 EUR"}]
[null,"Įtrauktas nusidėvėjimas",null,{"$f":"D29","v":{"v":63333.333333333336,"d":"63,333.33 EUR"}},{"$f":"E29","v":{"v":63333.333333333336,"d":"63,333.33 EUR"}},{"$f":"F29","v":{"v":63333.333333333336,"d":"63,333.33 EUR"}}]
[null,"Pinigų srautas",{"$f":"-PradinėInvesticija[[#Totals],[METAI]]","v":{"v":-190000,"d":"-190,000.00 EUR"}},{"$f":"D35+D36","v":{"v":69750,"d":"69,750.00 EUR"}},{"v":82000,"d":"82,000.00 EUR"},{"v":90750,"d":"90,750.00 EUR"}]
[null,"Kaupiamasis pinigų srautas",{"$f":"C37","v":{"v":-190000,"d":"-190,000.00 EUR"}},{"$f":"C38+D37","v":{"v":-120250,"d":"-120,250.00 EUR"}},{"v":-38250,"d":"-38,250.00 EUR"},{"v":52500,"d":"52,500.00 EUR"}]
[]
["Vertinimo metrika automatiškai apskaičiuojama lentelėje Metrika, pradedant langeliu dešinėje.","Vertinimo metrika","Reikšmės"]
[null,"Dabartinė grynoji vertė (NPV)",{"$f":"C37+(NPV(ROR,D37:F37))","v":{"v":9359.504132231377,"d":"9,359.50 EUR"}}]
[null,"Vidinis grąžos koeficientas (IRR)",{"$f":"IRR(C37:F37)","v":{"v":0.12655165144706393,"d":"12.66%"}}]
[null,"Grąžinimo laikotarpis (metais)",{"$f":"IF(F38<=0,\"Viršija 3 metus\",IF(E38<=0,(F37-F38)/F37+2,IF(D38<=0,(E37-E38)/E37+1,IF(C38<=0,(D37-D38)/D37,\"Netaikoma\"))))","v":{"v":2.4214876033057853,"d":"2.42"}}]